{"text_format":"1","workbook":"xlsx","n_sheets":3,"sheets":["高効率給湯器（エコキュート）記入例","高効率給湯器（エコキュート）項目説明","高効率給湯器（エコキュート）フォーマット"],"not_rendered":{"charts":0,"images":1,"macros":0,"external_links":0,"defined_names":6,"comments":0,"pivot_tables":0},"unopened":[],"bounds":{"document_bytes":16777216,"sheet_cells":100000,"rows_first":2000,"rows_last":500,"rows_between":2000,"halvings":0,"cell_chars":16384,"cell_head_chars":4096},"cells_cut":0,"cells_raw":0,"read":"whole","date_system":"1900"}

{"sheet":"高効率給湯器（エコキュート）記入例","index":0,"n_rows":26,"n_cols":30,"rows_kept":26,"cut":false,"hidden":false,"merged":[[4,10,5,10],[4,16,5,16],[4,17,5,17],[4,29,5,29],[4,14,5,14],[4,18,5,18],[4,28,5,28],[4,21,4,22],[4,11,5,11],[4,1,5,1],[4,3,5,3],[4,5,5,5],[4,7,5,7],[4,9,5,9],[4,23,4,25],[4,27,5,27],[4,15,5,15],[2,19,2,26],[2,27,2,29]]}
[null,null,null,null,null,null,null,null,null,null,null,null,null,null,null,null,null,null,null,null,null,null,null,null,null,null,null,null,null,"【様式 A1-1】"]
[]
[null,"【入力見本】〇 ヒートポンプ給湯機（エコキュート）　対象製品リスト申請様式　（※このシートには入力しないでください）",null,null,null,null,null,null,null,null,null,null,null,null,null,null,null,null,null,"【給湯省エネ2025】"]
[null,1,2,3,4,5,6,7,8,9,10,11,12,13,14,15,16,17,18,19,20,21,22,23,24,25,26,27,28,29]
[null,"メーカー\nコード","●","製造\nメーカー名","●","おひさまエコキュート\n（リスト選択)","●","性能\n区分\n（リスト選択)","●","貯湯ユニット　　　　　　　　　　　　　　型名","貯湯容量\n（リットル）","ヒートポンプ\nユニット型名","●","●","給湯省エネ2025\n事業対象\n（リスト選択)","製造・輸入元\n製品との\n適合確認 ","製造・輸入\n事業者の\n製品型番","省エネ法対象\n（リスト選択）","ISO9001他\n認証習得","●","本体/リモコン","リモコン",null,"無線LANアダプター",null,null,"●","対象製品\nリスト\n掲載可能日","製品情報の\n対外非公表\nを希望する\n（リスト選択)","備考"]
[null,null,"登録事業者名",null,"機種区分\n（自動入力）",null,"製品名\n（自動入力）",null,"製品型番",null,null,null,"寒冷地仕様\n(リスト選択)","年間給湯保温\n効率又は\n年間給湯効率",null,null,null,null,null,"A要件\n区分\n（リスト選択)","A要件\n確認方法\n（自動入力）","A要件\n納品書確認型式","A要件\n現地確認型式","A要件\n確認方法\n（自動入力）","A要件\n納品書確認型式","A要件\n現地確認型式","B要件\n（リスト選択)"]
[null,"KK","霞が関工業","霞が関工業","エコキュート","〇","ヒートポンプ給湯機（エコキュート）","C","CHP-37zzz","CTU-37zz",370,"CHP-45zz",null,3.3,null,null,null,null,"ISO9001"]
[null,"KK","霞が関工業","霞が関工業","エコキュート",null,"ヒートポンプ給湯機（エコキュート）","E","CHP-37ABc","CTU-37AB",370,"CHP-45zzS",null,"4.0","〇",null,null,null,"ISO9001","1","本体型式"]
[null,"KK","霞が関工業","霞が関工業","エコキュート",null,"ヒートポンプ給湯機（エコキュート）","E","CHP-46XYz","CTU-46XY",460,"CHP-60zz",null,"3.5","〇",null,null,null,"ISO9001",2,"リモコン型式","AACB-D6SE-T","AACB-KD6-T"]
[null,"KK","霞が関工業","霞が関工業","エコキュート",null,"ヒートポンプ給湯機（エコキュート）","E","CHP-46XYz","CTU-46XY",460,"CHP-60zz",null,"3.5","〇",null,null,null,"ISO9001",3,null,null,null,"無線LANアダプター","GT-RA2","GT-RA2"]
[null,"KK","霞が関工業","霞が関工業","エコキュート",null,"ヒートポンプ給湯機（エコキュート）","E","ABC-37zz","ZTU-37zz","460","ZHP-45zzK",null,"3.8","〇",null,null,"○","ISO9001",4,"リモコン型式","RMCB-F6SE-T","RMCB-KC6-T","無線LANアダプター","GT-HR1","GT-HR1","〇"]
[]
[]
[null,"■記入の際の注意事項"]
[null,"　　　製品リストは、電算処理を行いますので記入ルールをよく確認の上、資料を作成してください。条件に従ってない場合はエラーとなりますのでご注意ください。"]
[null,"　　　　　　注1) 色がついている項目(任意項目以外)は、原則すべて入力すること。(該当なしの場合は空白で可。)"]
[null,"　　　　　　注2) 数字は半角、英字は半角大文字で記入すること。不要なスペースは入力しないこと。"]
[null,"　　　　　　注3) 入力の起点(●列●行目)を変えず、書式フォーマットの変更(列の削除や追加)は行わないこと。また、行はあけずにつめて入力すること。"]
[null,"　　　　　　注4) 環境依存文字(②、Ⅱ、㈱、㈲等)を使用しないこと。関数(計算式)、参照･リンク(他ファイル、他シート)等は行わないこと。"]
[null,"　　　　　　注5) 製品リストの行が足りなくなった場合は、適宜、行の追加すること。"]
[null,"　　　　　　　　　　※先頭に“●”のある項目情報は、ＨＰ上で公表を行う。"]
[]
[null,"■追加登録の際の注意事項"]
[null,"　　　　　　注1) ２回目以降に追加で型番登録を行う場合は、追加型番のみ入力して提出すること。"]
[null,"　　　　　　注2) 製品登録完了後に万が一修正が発生した場合は、修正部分の項目セルに必ず色付け(黄色)をし、修正部分の項目セルに必ず色付け（黄色）をし、"]
[null,null,"　　　修正部分がわかるようにしたうえで、修正する型番のみ抜粋して再提出してください。"]

{"sheet":"高効率給湯器（エコキュート）項目説明","index":1,"n_rows":32,"n_cols":20,"rows_kept":32,"cut":false,"hidden":false,"merged":[[2,2,2,4],[2,8,2,18],[23,2,24,2],[25,2,27,2],[28,2,28,4],[7,2,7,4],[15,2,15,4],[17,2,17,4],[18,2,18,4],[21,2,21,4],[21,8,21,18],[30,8,30,18],[23,8,23,18],[24,8,24,18],[26,8,26,18],[27,8,27,18],[29,8,29,18]]}
[null,null,null,null,null,null,null,null,null,null,null,null,null,null,null,null,null,null,null,"【様式 A1-1】"]
[null,"■項目説明　〇 ヒートポンプ給湯機（エコキュート）"]
[null,"項番","項目",null,null,"型","最大文字数","必須/任意","項目説明",null,null,null,null,null,null,null,null,null,null,"ＨＰ上表示"]
[null,1,"メーカーコード",null,null,"半角英数",3,"必須","事務局より付与されたコードを記入。"]
[null,2,"登録事業者名",null,null,"文字",60,"必須","機器に掲載しているブランド（販売社）を記入。",null,null,null,null,null,null,null,null,null,null,"●"]
[null,3,"製造メーカー名",null,null,"文字",60,"必須","機器の製造責任メーカーを記入。"]
[null,4,"機種区分（自動入力）",null,null,"文字",60,"必須","「エコキュート」を記入。",null,null,null,null,null,null,null,null,null,null,"●"]
[null,5,"おひさまエコキュート（リスト選択)",null,null,"○","固定値","選択必須","おひさまエコキュートの場合は「○」、それ以外は「無印」"]
[null,6,"製品名（自動入力）",null,null,"文字",60,"必須","「ヒートポンプ給湯機（エコキュート）」を記入。",null,null,null,null,null,null,null,null,null,null,"●"]
[null,7,"性能区分（リスト選択)",null,null,"半角英数",1,"必須","エコキュートの省エネ基準の表に基づきA～JまたはZを記入。\n\n"]
[null,8,"製品型番",null,null,"半角英数",24,"必須","製品型番を記入、他の型番との重複不可。",null,null,null,null,null,null,null,null,null,null,"●"]
[null,9,"貯湯ユニット型名",null,null,"半角英数",60,"必須","登録済み（登録中）の貯湯ユニットの型番等を記入。"]
[null,10,"貯湯容量（リットル）",null,null,"半角英数",10,"必須","リットルで記入。"]
[null,11,"ヒートポンプ\nユニット型名",null,null,"半角英数",60,"必須","登録済み（登録中）のヒートポンプユニットの型番等を記入。"]
[null,12,"寒冷地仕様（リスト選択)",null,null,"○","固定値","選択必須","寒冷地仕様の場合は「○」、それ以外は「無印」",null,null,null,null,null,null,null,null,null,null,"●"]
[null,13,"年間給湯保温効率又は年間給湯効率",null,null,"半角英数",3,"必須","数値（小数点以下１桁まで）を記入、単位不要。",null,null,null,null,null,null,null,null,null,null,"●"]
[null,14,"給湯省エネ2025事業対象（リスト選択)",null,null,"○","固定値","選択必須","給湯省エネ2025事業の対象となる場合は「○」、それ以外は「無印」"]
[null,15,"製造･輸入元製品との適合確認",null,null,"○","固定値","任意","OEM製品の場合で、製造･輸入事業者による適合確認書で基準の適合確認を行う場合「○」を記入。"]
[null,16,"製造･輸入事業者の製品型番",null,null,"半角英数",24,"任意","OEM製品の場合で、適合確認している製造･輸入元製品の型番を記入。"]
[null,17,"省エネ法対象（リスト選択）",null,null,"○","固定値","必須","省エネ法対象機種は必須、「〇」を記入。"]
[null,18,"ISO9001他  認証取得",null,null,"半角英数",60,"必須","取得品質認証名（ISO9001, ISO/TS 16949, BL認定）を記入。"]
[null,19,"A要件区分",null,null,"半角英数","固定値","任意","A要件対象機種は必須。1～4を記入。\n1：本体型式、2：リモコン、3：無線LANアダプタ、4：リモコン又は無線LANアダプタ",null,null,null,null,null,null,null,null,null,null,"●"]
[null,20,"本体/リモコン","A要件確認方法（自動入力）",null,"文字",60,"任意","項番19で「1」を選択した場合は「本体型式」、「2」または「4」を選択した場合は「リモコン型式」を記入。"]
[null,21,"リモコン","A要件納品書確認型式",null,"文字","無制限","任意","項番20で「２.リモコン型式」を選択した場合は必須、リモコンの型式を記入、複数の型式がある場合は、「,」（半角カンマ）で区切って併記、型式に追加修正があった場合は赤字で記入。"]
[null,22,null,"A要件現地確認型式",null,"文字","無制限","任意","現地に設置されるリモコン型式を記入、複数の型式がある場合は、「,」（半角カンマ）で区切って併記、項番21と相対する順で記入、型式に追加修正があった場合は赤字で記入。"]
[null,23,"無線LANアダプター","A要件確認方法（自動入力）",null,"文字",24,"任意","項番20で「3」または「4」を選択した場合は、「無線LANアダプタ」を記入。"]
[null,24,null,"A要件納品書確認型式",null,"文字","無制限","任意","納品書に記載される無線LANアダプタ型式を記入、複数の型式がある場合は、「,」（半角カンマ）で区切って併記、\n型式に追加修正があった場合は赤字で記入。"]
[null,25,null,"A要件現地確認型式",null,"文字","無制限","任意","現地に設置される無線LANアダプタ型式を記入、複数の型式がある場合は、「,」（半角カンマ）で区切って併記、項番24と相対する順で記入、型式に追加修正があった場合は赤字で記入。"]
[null,26,"B要件",null,null,"○","固定値","任意","B要件対象機種は「〇」を記入。",null,null,null,null,null,null,null,null,null,null,"●"]
[null,27,"対象製品リスト\n掲載可能日",null,null,"日付",10,"任意","発売日が登録日以降になる機器などで、ＨＰ記載してもよい日を例「2025/02/05」のように記入。\n指定した日付以降に情報公開します。（指定した日付までは情報公開されません。）"]
[null,28,"製品情報の対外非公表\nを希望する",null,null,"○","固定値","任意","非公開：○、公開可能：ブランク\n※ホームページ非公開から公開可能になった場合は、○印を削除して再提出してください。\n「○」を入力した場合、情報は無期限に公開されません。\n※「○」を入力するとともに、項番27に日付を入力することはできません。"]
[null,29,"備考",null,null,"文字",60,"任意"]

{"sheet":"高効率給湯器（エコキュート）フォーマット","index":2,"n_rows":39,"n_cols":30,"rows_kept":39,"cut":false,"hidden":false,"merged":[[4,23,4,25],[4,27,5,27],[4,28,5,28],[2,19,2,26],[2,27,2,29],[4,1,5,1],[4,3,5,3],[4,5,5,5],[4,7,5,7],[4,9,5,9],[4,10,5,10],[4,11,5,11],[4,29,5,29],[4,14,5,14],[4,15,5,15],[4,16,5,16],[4,17,5,17],[4,18,5,18],[4,20,4,22]]}
[null,null,null,null,null,null,null,null,null,null,null,null,null,null,null,null,null,null,null,null,null,null,null,null,null,null,null,null,null,"【様式 A1-1】"]
[]
[null,"〇 ヒートポンプ給湯機（エコキュート）　対象製品リスト申請様式",null,null,null,null,null,null,null,null,null,null,null,null,null,null,null,null,null,"【給湯省エネ2025】"]
[null,1,2,3,4,5,6,7,8,9,10,11,12,13,14,15,16,17,18,19,20,21,22,23,24,25,26,27,28,29]
[null,"メーカー\nコード","●","製造\nメーカー名","●","おひさまエコキュート\n（リスト選択)","●","性能\n区分\n（リスト選択)","●","貯湯ユニット　　　　　　　　　　　　　　型名","貯湯容量\n（リットル）","ヒートポンプ\nユニット型名","●","●","給湯省エネ2025\n事業対象\n（リスト選択）","製造・輸入元\n製品との\n適合確認 ","製造・輸入\n事業者の\n製品型番","省エネ法対象\n（リスト選択）","ISO9001他\n認証習得","●","リモコン",null,null,"無線LANアダプター",null,null,"●","対象製品\nリスト\n掲載可能日","製品情報の\n対外非公表\nを希望する\n（リスト選択)","備考"]
[null,null,"登録事業者名",null,"機種区分\n（自動入力）",null,"製品名\n（自動入力）",null,"製品型番",null,null,null,"寒冷地仕様\n(リスト選択)","年間給湯保温\n効率又は\n年間給湯効率",null,null,null,null,null,"A要件\n区分\n（リスト選択)","A要件\n確認方法\n（自動入力）","A要件\n納品書確認型式","A要件\n現地確認型式","A要件\n確認方法","A要件\n納品書確認型式","A要件\n現地確認型式","B要件\n（リスト選択)"]
[null,null,null,null,{"$f":"IF(I7<>\"\",\"エコキュート\",\"\")","v":""},null,{"$f":"IF(I7<>\"\",\"ヒートポンプ給湯機（エコキュート）\",\"\")","v":""},null,null,null,null,null,null,null,null,null,null,null,null,null,{"$f":"_xlfn.SWITCH(T7,1,\"本体型式\",2,\"リモコン型式\",4,\"リモコン型式\",\"\")","v":""},null,null,{"$f":"_xlfn.SWITCH(T7,3,\"無線LANアダプタ\",4,\"無線LANアダプタ\",\"\")","v":""}]
[null,null,null,null,{"$f":"IF(I8<>\"\",\"エコキュート\",\"\")","v":""},null,{"$f":"IF(I8<>\"\",\"ヒートポンプ給湯機（エコキュート）\",\"\")","v":""},null,null,null,null,null,null,null,null,null,null,null,null,null,{"$f":"_xlfn.SWITCH(T8,1,\"本体型式\",2,\"リモコン型式\",4,\"リモコン型式\",\"\")","v":""},null,null,{"$f":"_xlfn.SWITCH(T8,3,\"無線LANアダプタ\",4,\"無線LANアダプタ\",\"\")","v":""}]
[null,null,null,null,"",null,{"$f":"IF(I9<>\"\",\"ヒートポンプ給湯機（エコキュート）\",\"\")","v":""},null,null,null,null,null,null,null,null,null,null,null,null,null,"",null,null,""]
[null,null,null,null,"",null,"",null,null,null,null,null,null,null,null,null,null,null,null,null,"",null,null,""]
[null,null,null,null,"",null,"",null,null,null,null,null,null,null,null,null,null,null,null,null,"",null,null,""]
[null,null,null,null,"",null,"",null,null,null,null,null,null,null,null,null,null,null,null,null,"",null,null,""]
[null,null,null,null,"",null,"",null,null,null,null,null,null,null,null,null,null,null,null,null,"",null,null,""]
[null,null,null,null,"",null,"",null,null,null,null,null,null,null,null,null,null,null,null,null,"",null,null,""]
[null,null,null,null,"",null,"",null,null,null,null,null,null,null,null,null,null,null,null,null,"",null,null,""]
[null,null,null,null,"",null,"",null,null,null,null,null,null,null,null,null,null,null,null,null,"",null,null,""]
[null,null,null,null,"",null,"",null,null,null,null,null,null,null,null,null,null,null,null,null,"",null,null,""]
[null,null,null,null,"",null,"",null,null,null,null,null,null,null,null,null,null,null,null,null,"",null,null,""]
[null,null,null,null,"",null,"",null,null,null,null,null,null,null,null,null,null,null,null,null,"",null,null,""]
[null,null,null,null,"",null,"",null,null,null,null,null,null,null,null,null,null,null,null,null,"",null,null,""]
[null,null,null,null,"",null,"",null,null,null,null,null,null,null,null,null,null,null,null,null,"",null,null,""]
[null,null,null,null,"",null,"",null,null,null,null,null,null,null,null,null,null,null,null,null,"",null,null,""]
[null,null,null,null,"",null,"",null,null,null,null,null,null,null,null,null,null,null,null,null,"",null,null,""]
[null,null,null,null,"",null,"",null,null,null,null,null,null,null,null,null,null,null,null,null,"",null,null,""]
[null,null,null,null,"",null,"",null,null,null,null,null,null,null,null,null,null,null,null,null,"",null,null,""]
[null,null,null,null,"",null,"",null,null,null,null,null,null,null,null,null,null,null,null,null,"",null,null,""]
[null,null,null,null,"",null,"",null,null,null,null,null,null,null,null,null,null,null,null,null,"",null,null,""]
[null,null,null,null,"",null,"",null,null,null,null,null,null,null,null,null,null,null,null,null,"",null,null,""]
[null,null,null,null,"",null,"",null,null,null,null,null,null,null,null,null,null,null,null,null,"",null,null,""]
[null,null,null,null,"",null,"",null,null,null,null,null,null,null,null,null,null,null,null,null,"",null,null,""]
[null,null,null,null,"",null,"",null,null,null,null,null,null,null,null,null,null,null,null,null,"",null,null,""]
[null,null,null,null,"",null,"",null,null,null,null,null,null,null,null,null,null,null,null,null,"",null,null,""]
[null,null,null,null,"",null,"",null,null,null,null,null,null,null,null,null,null,null,null,null,"",null,null,""]
[null,null,null,null,"",null,"",null,null,null,null,null,null,null,null,null,null,null,null,null,"",null,null,""]
[null,null,null,null,"",null,"",null,null,null,null,null,null,null,null,null,null,null,null,null,"",null,null,""]
[null,null,null,null,"",null,"",null,null,null,null,null,null,null,null,null,null,null,null,null,"",null,null,""]
[null,null,null,null,"",null,"",null,null,null,null,null,null,null,null,null,null,null,null,null,"",null,null,""]
[null,null,null,null,"",null,"",null,null,null,null,null,null,null,null,null,null,null,null,null,"",null,null,""]
[null,null,null,null,"",null,"",null,null,null,null,null,null,null,null,null,null,null,null,null,"",null,null,""]